bitfinex-derivatives/quotes_ETHF0:USTF0_20250112
["timestamp","ask_amount","ask_price","bid_price","bid_amount"]
[1736699840625,1.57476,3286.8,3286.5,0.21308]
[1736699840826,1.3617,3286.8,3286.5,0.21308]
[1736699841028,1.57477,3286.8,3286.5,0.21308]
[1736699841229,0.21307,3286.7,3286.4,0.21309]
[1736699841423,1.57477,3286.8,3286.5,0.21308]
[1736699842229,1.57477,3286.8,3286.2,40.8]
[1736699842736,1.57477,3286.8,3286.5,0.21308]
[1736699844525,1.3617,3286.8,3286.3,0.2131]
[1736699844726,1.3617,3286.8,3286.2,40.8]
[1736699844727,0.2131,3286.3,3286.2,40.8]
[1736699844927,3.2078,3286.5,3285.5,9.78405117]
[1736699845130,0.9109,3286.2,3286.0,0.21311]
[1736699845535,0.9109,3286.2,3286.0,40.8]
[1736699845735,1.56201,3286.2,3286.0,40.8]
[1736699846133,0.21311,3286.1,3285.9,0.21312]
[1736699846337,0.21311,3286.1,3285.8,2.57869824]
[1736699846338,0.21312,3286.1,3285.8,0.4578]
[1736699846530,0.21312,3286.1,3285.9,41.01312]
[1736699847033,1.56201,3286.2,3285.9,41.01312]
[1736699847231,0.21311,3286.1,3285.9,41.01312]
[1736699847431,1.3489,3286.2,3285.9,40.8]
[1736699847727,0.21311,3286.1,3285.9,40.8]
[1736699847934,0.21312,3286.0,3285.9,40.8]
[1736699848234,1.3489,3286.2,3285.8,0.4578]
[1736699848434,0.21312,3286.1,3285.8,0.67093]
[1736699848733,0.21312,3286.1,3285.8,41.47093]
[1736699849235,1.3489,3286.2,3286.1,0.21311]
[1736699849435,0.9001,3286.2,3286.1,0.21311]
[1736699851839,3.86169,3286.5,3285.8,47.11932824]
[1736699852042,4.31729,3286.5,3286.2,0.2131]
[1736699852339,4.31729,3286.5,3286.3,0.651]
[1736699852539,4.1042,3286.5,3286.3,0.651]
[1736699852844,3.6634,3286.5,3286.3,0.651]
[1736699853143,3.2078,3286.5,3286.4,0.21309]
[1736699854340,3.2078,3286.5,3286.3,0.4379]
[1736699854536,3.2078,3286.5,3286.3,0.65099]
[1736699857142,3.2078,3286.5,3286.4,0.21309]
[1736699857836,3.2078,3286.5,3286.3,1.11289]
[1736699858545,3.42089,3286.5,3286.3,0.4379]
[1736699858842,0.446,3286.4,3286.3,0.4379]
[1736699859239,0.446,3286.4,3286.3,0.651]
[1736699859539,3.2078,3286.5,3286.3,0.651]
[1736699860039,3.42088,3286.5,3286.3,0.651]
[1736699860843,3.2078,3286.5,3286.3,0.651]
[1736699861038,3.2078,3286.5,3286.3,0.4379]
[1736699861245,3.42088,3286.5,3286.3,0.65099]
[1736699861453,3.2078,3286.5,3286.3,0.65099]
[1736699861637,3.42089,3286.5,3286.3,0.65099]
[1736699861838,3.42089,3286.5,3286.3,0.4379]
[1736699862040,3.2078,3286.5,3286.3,0.4379]
[1736699862254,3.2078,3286.5,3285.9,2.81165118]
[1736699862443,0.2131,3286.3,3286.0,0.4443]
[1736699862744,0.2131,3286.3,3286.0,0.65741]
[1736699863247,0.2131,3286.3,3286.0,0.4443]
[1736699863549,0.21309,3286.4,3286.1,0.2131]
[1736699864847,0.2131,3286.3,3286.1,0.2131]
[1736699868449,3.6538,3286.6,3286.0,0.4443]
[1736699868650,0.21309,3286.4,3286.0,0.4443]
[1736699868849,0.21309,3286.4,3286.2,0.2131]
[1736699869252,3.6538,3286.6,3286.2,0.2131]
[1736699869751,3.86688,3286.6,3286.0,0.4443]
[1736699869942,3.6538,3286.6,3286.0,0.4443]
[1736699870145,0.21309,3286.5,3286.2,0.2131]
[1736699871349,0.21309,3286.5,3286.2,1.32542738]
[1736699871852,0.21309,3286.4,3286.2,1.11232738]
[1736699872754,0.21309,3286.4,3286.2,1.32542738]
[1736699873554,0.2131,3286.3,3286.2,1.11232738]
[1736699873755,0.4539,3286.3,3286.2,1.11232738]
[1736699875350,0.667,3286.3,3286.2,1.11232738]
[1736699880956,0.4539,3286.3,3286.2,1.11232738]
[1736699881163,0.4539,3286.3,3286.2,1.32542738]
[1736699881456,3.6538,3286.6,3286.4,0.21309]
[1736699881755,3.6538,3286.6,3286.5,1.11232738]
[1736699881953,3.6538,3286.6,3286.5,1.32540738]
[1736699882649,3.6538,3286.6,3286.5,1.11232738]
[1736699883852,0.65908,3286.6,3286.5,1.11232738]
[1736699884960,0.446,3286.6,3286.3,1.11232738]
[1736699885158,0.2131,3286.3,3286.0,3.87791]
[1736699885450,0.2131,3286.3,3286.1,1.11232738]
[1736699885961,0.2131,3286.2,3286.1,1.11232738]
[1736699886162,0.4532,3286.2,3286.1,1.11232738]
[1736699886952,0.6663,3286.2,3286.1,1.11232738]
[1736699887353,0.4532,3286.2,3286.1,1.11232738]
[1736699887758,0.6663,3286.2,3286.1,1.11232738]
[1736699893159,0.6663,3286.2,3286.1,41.91232738]
[1736699893656,0.21314,3285.7,3285.6,3.2078]
[1736699893855,0.21314,3285.7,3284.8,4.7821861]
[1736699893856,1.11232738,3285.8,3285.3,0.4679]
[1736699894056,0.21316,3285.4,3285.3,0.4679]
[1736699897258,0.448,3285.5,3285.3,0.4679]
[1736699897459,3.2078,3286.1,3285.4,5.55882737]
[1736699897659,0.2131,3286.3,3286.0,2.35102737]
[1736699897861,3.2078,3286.8,3286.2,2.35102737]
[1736699898068,0.2131,3286.4,3286.2,2.35102737]
[1736699898469,3.2078,3286.8,3286.2,2.35102737]
[1736699898768,0.21309,3286.4,3286.2,2.35102737]
[1736699899063,0.21308,3286.6,3286.3,0.2131]
[1736699899261,0.21307,3286.7,3286.5,2.35102737]
[1736699899460,3.2078,3286.8,3286.5,2.35102737]
[1736699899769,0.21308,3286.6,3286.5,2.35102737]
[1736699901067,3.2078,3286.8,3286.2,7.13321347]
[1736699901362,0.21309,3286.5,3286.2,7.13321347]
[1736699901561,0.21309,3286.5,3286.2,2.56412737]
[1736699901963,0.21309,3286.5,3286.2,2.35102737]
[1736699902564,3.2078,3286.8,3286.2,2.35102737]
[1736699902764,0.2131,3286.3,3286.2,2.35102737]
[1736699907275,0.2131,3286.3,3286.2,5.55882737]
[1736699908275,0.2131,3286.3,3286.2,5.55724417]
[1736699911382,0.2131,3286.3,3286.2,2.34944417]
[1736699914682,0.2131,3286.2,3286.1,0.4347]
[1736699914883,0.21312,3286.0,3285.9,43.14944417]
[1736699915080,0.21312,3286.0,3285.9,43.58734417]
[1736699916079,0.21312,3286.0,3285.9,43.58779513]
[1736699917180,0.21312,3285.9,3285.8,3.2078]
[1736699917478,1.10302,3285.9,3285.8,3.2078]
[1736699917784,1.10302,3285.9,3285.7,40.8]
[1736699917785,4.0977,3285.9,3285.7,40.8]
[1736699917974,0.21317,3285.1,3285.0,2.80499513]
[1736699918488,0.21317,3285.1,3285.0,43.60499513]
[1736699923488,0.21317,3285.1,3285.0,43.14989513]
[1736699924185,0.64857,3285.1,3285.0,43.14989513]
[1736699924381,0.64857,3285.1,3285.0,40.8]
[1736699924584,0.21319,3284.8,3284.7,8.11935456]
[1736699924979,0.21319,3284.8,3284.7,48.91935456]
[1736699925486,0.21319,3284.8,3284.7,0.45496231]
[1736699928894,4.17615,3285.1,3284.5,40.8]
[1736699929188,0.21321,3284.6,3284.5,40.8]
[1736699929584,0.21323,3284.2,3284.1,3.2078]
[1736699930082,0.21323,3284.2,3284.1,44.0078]
[1736699931091,0.21327,3283.7,3283.6,2.34989513]
[1736699931388,0.21327,3283.6,3283.5,3.2078]
[1736699931592,0.21327,3283.6,3283.5,44.0078]
[1736699932586,0.21327,3283.6,3283.5,40.8]
[1736699933092,0.2133,3283.2,3283.1,7.07247631]
[1736699933496,0.2133,3283.2,3283.1,47.87247631]
[1736699941494,0.2133,3283.1,3283.0,3.2078]
[1736699941797,0.21331,3283.0,3282.9,0.40093671]
[1736699941998,0.21331,3283.0,3282.9,41.20093671]
[1736699942992,0.435,3283.3,3282.9,41.20093671]
[1736699943390,0.21331,3283.0,3282.9,41.20093671]
[1736699943591,0.21331,3283.0,3282.9,41.86065671]
[1736699943799,0.21331,3283.0,3282.9,41.64733671]
[1736699945591,0.21331,3283.0,3282.9,41.86065671]
[1736699945895,0.21331,3283.0,3282.9,41.64733671]
[1736699946395,0.21331,3283.0,3282.9,41.86065671]
[1736699947799,0.21331,3283.0,3282.9,41.64733671]
[1736699948199,0.21331,3283.0,3282.9,41.86065671]
[1736699950796,0.21331,3283.0,3282.9,41.64733671]
[1736699950999,0.21331,3283.0,3282.9,41.20093671]
[1736699951204,0.21332,3282.9,3282.8,0.4484]
[1736699952101,0.53327,3283.1,3282.1,9.42549964]
[1736699952295,1.399,3282.8,3282.2,0.4405]
[1736699952503,0.21336,3282.3,3282.2,0.65386]
[1736699952806,0.21336,3282.3,3282.2,41.2405]
[1736699953596,0.21336,3282.3,3282.2,41.45386]
[1736699954498,0.21336,3282.3,3282.2,41.2405]
[1736699955100,0.21336,3282.3,3282.2,41.45386]
[1736699955405,0.21335,3282.5,3282.3,0.21336]
[1736699955602,1.399,3282.8,3282.4,2.34989513]
[1736699955801,0.21332,3282.9,3282.5,0.21334]
[1736699956007,0.21332,3282.9,3282.6,0.4659]
[1736699956212,0.21333,3282.7,3282.6,0.67924]
[1736699956403,0.21333,3282.7,3282.6,0.4659]
[1736699956604,0.21333,3282.8,3282.6,0.67923]
[1736699957504,0.21334,3282.6,3282.5,0.21334]
[1736699957998,0.9168,3282.7,3282.2,41.2405]
[1736699958211,0.21335,3282.5,3282.3,0.21335]
[1736699958707,0.21335,3282.5,3282.4,0.21335]
[1736699959205,3.74105,3283.3,3282.6,0.21334]
[1736699959413,0.21333,3282.8,3282.7,0.67713]
[1736699959712,0.21332,3282.9,3282.7,0.67713]
[1736699960905,0.21332,3282.9,3282.7,0.4638]
[1736699961610,0.21332,3282.9,3282.7,0.67713]
[1736699962206,0.21332,3282.9,3282.7,0.4638]
[1736699962804,1.4082,3283.2,3282.7,0.4638]
[1736699963004,0.9392,3283.2,3283.0,2.56320513]
[1736699963209,0.9392,3283.2,3283.0,2.34989513]
[1736699963409,0.9392,3283.2,3283.1,0.2133]
[1736699963711,0.9392,3283.2,3283.0,0.21331]
[1736699964008,1.1525,3283.2,3282.9,2.56320513]
[1736699964405,0.21331,3283.1,3282.8,3.42112]
[1736699964607,0.21331,3283.1,3282.9,0.21332]
[1736699964907,0.9392,3283.2,3282.9,0.21332]
[1736699965113,1.1525,3283.2,3282.9,0.21332]
[1736699967515,0.9392,3283.2,3282.9,2.34989513]
[1736699967716,3.2078,3283.5,3282.9,2.34989513]
[1736699967919,4.1059,3283.5,3282.9,2.34989513]
[1736699968216,0.21329,3283.3,3283.1,0.2133]
[1736699968715,0.21329,3283.4,3282.9,2.34989513]
[1736699968908,0.21329,3283.4,3283.2,0.2133]
[1736699969108,4.1059,3283.5,3283.1,0.2133]
[1736699969310,0.21329,3283.3,3283.1,0.2133]
[1736699969715,0.21329,3283.4,3283.2,0.2133]
[1736699970509,0.8981,3283.5,3283.2,0.2133]
[1736699970716,0.21329,3283.3,3283.2,0.2133]
[1736699971016,0.21329,3283.3,3283.0,41.01331]
[1736699971313,0.21329,3283.4,3283.1,0.2133]
[1736699971514,0.8981,3283.5,3283.2,0.2133]
[1736699971709,0.8981,3283.5,3283.2,0.4367]
[1736699971918,0.21329,3283.3,3283.2,0.4367]
[1736699974315,4.1059,3283.5,3282.9,2.34989513]
[1736699974507,0.21331,3283.0,3282.9,7.13208123]
[1736699975321,0.21331,3283.0,3282.9,2.34989513]
[1736699976222,0.21331,3283.0,3282.9,7.13208123]
[1736699977421,0.21331,3283.0,3282.9,4.7821861]
[1736699977720,0.21331,3283.0,3282.9,4.0589861]
[1736699978223,3.49270513,3283.0,3282.9,0.8278861]
[1736699978424,0.21332,3282.8,3282.7,7.17327915]
[1736699978922,0.21336,3282.3,3282.1,0.4762]
[1736699979626,0.21335,3282.4,3282.1,0.68957]
[1736699980325,0.21336,3282.2,3282.1,0.4762]
[1736699986725,0.21341,3281.5,3281.4,9.89136526]
[1736699986925,5.77110513,3281.5,3281.4,8.72026226]
[1736699987222,4.63221,3281.5,3281.4,5.63015236]
[1736699987416,4.4188,3281.5,3280.7,0.4383]
[1736699987622,0.21341,3281.4,3280.7,0.4383]
[1736699987817,0.21344,3281.0,3280.7,0.4383]
[1736699988324,0.21345,3280.9,3280.7,0.4383]
[1736699988624,0.21345,3281.0,3280.7,0.4383]
[1736699989233,0.21344,3281.1,3280.7,2.78819513]
[1736699989533,0.21344,3281.1,3280.7,3.00165513]
[1736699989724,0.21344,3281.1,3280.7,2.78819513]
[1736699990128,4.4188,3281.5,3281.0,2.34989513]
[1736699990129,3.2078,3281.5,3281.0,2.34989513]
[1736699990331,3.5115,3282.0,3281.3,2.34989513]
[1736699990528,0.2134,3281.7,3281.4,0.4364]
[1736699990728,0.2134,3281.7,3281.6,40.8]
[1736699991535,0.21338,3281.9,3281.6,40.8]
[1736699991729,3.2078,3282.0,3281.6,40.8]
[1736699992032,0.21339,3281.8,3281.7,0.4475]
[1736699992231,0.21339,3281.8,3281.7,0.9262]
[1736699993533,0.21339,3281.9,3281.7,0.9262]
[1736699993732,0.21339,3281.9,3281.8,3.0472]
[1736699997849,0.21339,3281.8,3281.7,0.4475]
[1736699998447,0.21339,3281.8,3281.7,3.4947]
[1736699999142,3.2078,3282.0,3281.7,3.4947]
[1736699999342,3.2078,3282.0,3281.8,0.4453]
[1736699999647,0.21338,3281.9,3281.8,0.4453]
[1736700008852,0.21338,3281.9,3281.8,3.4925]
[1736700011649,0.21339,3281.8,3281.7,0.4475]
[1736700012053,0.21339,3281.8,3281.7,3.4947]
[1736700015053,0.21339,3281.8,3281.4,0.8813]
[1736700015054,2.34989513,3281.8,3281.4,0.8813]
[1736700015362,0.21341,3281.5,3281.4,1.3174]
[1736700018057,2.56330513,3281.5,3281.4,0.4364]
[1736700018259,2.86700513,3281.5,3281.4,0.4364]
[1736700018849,0.21343,3281.2,3281.1,0.4757]
[1736700020257,4.09942513,3281.5,3281.0,41.2616]
[1736700020459,0.21343,3281.1,3281.0,41.2616]
[1736700020963,0.21343,3281.1,3281.0,0.4616]
[1736700030164,3.42123,3281.2,3281.0,3.5088]
[1736700030366,0.21343,3281.2,3281.0,3.5088]
[1736700030566,0.21343,3281.2,3281.1,0.4571]
[1736700033373,3.42123,3281.2,3281.1,0.4571]
[1736700034972,0.21343,3281.1,3281.0,0.4616]
[1736700036868,3.42123,3281.2,3281.0,0.4616]
[1736700037072,2.4843,3281.2,3281.0,3.72224]
[1736700037479,2.4843,3281.2,3281.1,0.21343]
[1736700038072,2.4843,3281.2,3281.0,3.5088]
[1736700038278,2.69773,3281.2,3281.0,3.72224]
[1736700038774,3.2078,3281.7,3281.0,3.72224]
[1736700039181,0.21343,3281.2,3281.0,3.72224]
[1736700039378,0.21343,3281.1,3281.0,3.5088]
[1736700040470,0.21343,3281.1,3281.0,0.4616]
[1736700041875,0.21343,3281.3,3281.1,0.21343]
[1736700042073,3.2078,3281.7,3281.2,0.4768]
[1736700042273,0.21342,3281.4,3281.2,0.69022]
[1736700042467,0.21342,3281.4,3281.3,0.4735]
[1736700042975,0.21341,3281.5,3281.3,0.4735]
[1736700043175,0.21341,3281.5,3281.4,3.0472]
[1736700075897,0.21341,3281.4,3281.3,0.8888]
[1736700077002,10.3674555,3281.6,3281.3,5.05171312]
[1736700077203,7.1596555,3281.6,3281.5,1.11571312]
[1736700077399,0.3112555,3281.6,3281.5,1.32912312]
[1736700077595,8.3390165,3281.8,3281.6,0.2134]
[1736700077799,7.16291364,3282.0,3281.7,4.32351312]
[1736700077999,7.37629364,3282.0,3281.9,1.11571312]
[1736700078905,0.21338,3282.0,3281.9,1.11571312]
[1736700080206,3.2078,3282.2,3281.9,1.11571312]
[1736700080405,0.21337,3282.1,3282.0,3.0472]
[1736700080704,0.21337,3282.1,3282.0,3.5076]
[1736700081802,0.21337,3282.1,3282.0,3.9447]
[1736700089604,0.4509,3282.2,3282.0,3.9447]
[1736700089807,0.21337,3282.2,3282.1,1.11571312]
[1736700103027,0.67776,3282.3,3282.1,1.11571312]
[1736700103219,0.67776,3282.3,3282.1,1.32908312]
[1736700103618,0.67776,3282.3,3282.1,1.11571312]
[1736700104319,0.21336,3282.2,3282.1,1.11571312]
[1736700105922,0.21336,3282.2,3282.1,4.16291312]
[1736700106321,0.4644,3282.3,3282.1,4.16291312]
[1736700106519,0.67776,3282.3,3282.1,4.37628312]
[1736700107026,0.21336,3282.2,3282.1,4.16291312]
[1736700108127,0.4644,3282.3,3282.1,4.16291312]
[1736700108424,0.4644,3282.3,3282.1,4.37628312]
[1736700108425,0.67776,3282.3,3282.1,4.37628312]
[1736700108822,0.4644,3282.3,3282.1,4.16291312]
[1736700109019,0.21336,3282.2,3282.1,4.16291312]
[1736700117329,8.5523765,3282.2,3282.1,4.16291312]
[1736700121244,18.08268107,3282.2,3282.1,4.16291312]
[1736700121540,18.64259789,3282.2,3282.1,4.16291312]
[1736700122246,0.77327682,3282.2,3282.1,4.16291312]
[1736700122433,0.21336,3282.2,3282.1,4.16291312]
[1736700125741,0.21336,3282.2,3282.1,8.94830023]
[1736700126143,0.67776,3282.3,3282.1,9.16167023]
[1736700126335,0.4644,3282.3,3282.1,8.94830023]
[1736700126539,0.21336,3282.2,3282.1,4.78538711]
[1736700126740,0.21336,3282.2,3282.1,45.58538711]
[1736700127541,0.21336,3282.2,3282.1,40.8]
[1736700128442,0.21336,3282.2,3282.1,45.58538711]
[1736700130643,0.21336,3282.2,3282.1,40.8]
[1736700130844,0.21337,3282.1,3282.0,4.78538711]
[1736700131546,0.21338,3282.0,3281.9,46.70110023]
[1736700131745,0.64898,3282.0,3281.9,46.70110023]
[1736700132639,0.64898,3282.0,3281.9,41.91571312]
[1736700133843,0.64898,3282.0,3281.9,40.8]
[1736700134144,0.2134,3281.7,3281.6,1.11571312]
[1736700134543,0.2134,3281.7,3281.6,41.91571312]
[1736700135142,0.21341,3281.5,3281.4,1.11571312]
[1736700135644,0.21341,3281.5,3281.4,41.91571312]
[1736700135838,0.21341,3281.5,3281.4,40.8]
[1736700136039,0.21341,3281.5,3281.3,0.444]
[1736700136040,0.21341,3281.4,3281.3,0.444]
[1736700136342,1.11571312,3281.5,3281.1,7.52356161]
[1736700136343,4.32351312,3281.5,3281.1,7.52356161]
[1736700136545,1.56001312,3281.3,3280.9,40.8]
[1736700136734,0.21344,3281.0,3280.9,40.8]
[1736700137136,0.21344,3281.0,3280.5,0.5]
[1736700137137,0.21347,3280.6,3280.5,0.5]
[1736700137343,1.32918312,3280.6,3280.5,0.5]
[1736700137742,2.26028312,3280.6,3280.5,0.5]
[1736700138346,2.04681312,3280.6,3279.9,0.4697]
[1736700138549,1.32921312,3280.1,3280.0,40.8]
[1736700139044,1.11571312,3280.1,3280.0,40.8]
[1736700139249,1.32921312,3280.1,3280.0,40.8]
[1736700140036,1.32921312,3280.1,3279.6,9.11240985]
[1736700140037,0.21351,3279.9,3279.6,9.11240985]
[1736700140443,0.21352,3279.9,3279.7,40.8]
[1736700140744,0.21352,3279.8,3279.7,40.8]
[1736700140949,0.67071,3279.9,3279.7,40.8]
[1736700141651,0.21349,3280.2,3279.9,0.21351]
[1736700141942,3.42129,3280.3,3279.9,0.21351]
[1736700142546,3.42129,3280.3,3280.0,0.21351]
[1736700142751,3.42129,3280.3,3279.9,0.21351]
[1736700142956,3.2078,3280.3,3279.7,43.15915434]
[1736700143251,0.21349,3280.2,3279.8,0.21351]
[1736700144651,0.21349,3280.2,3279.9,0.21351]
[1736700147651,0.21349,3280.2,3279.8,3.42132]
[1736700148657,0.21349,3280.2,3279.8,3.2078]
[1736700148855,0.21349,3280.2,3279.9,0.21351]
[1736700150857,3.2078,3280.3,3280.1,0.2135]
[1736700151158,3.2078,3280.3,3280.0,5.40635434]
[1736700151159,0.4572,3280.4,3280.2,0.4774]
[1736700151952,0.21349,3280.3,3280.2,0.4774]
[1736700152356,0.4572,3280.4,3280.0,3.0472]
[1736700152554,0.2135,3280.1,3280.0,3.0472]
[1736700152756,0.4741,3280.2,3279.9,0.4381]
[1736700152949,0.2135,3280.1,3279.9,0.4381]
[1736700154160,0.6876,3280.2,3279.9,0.4381]
[1736700154546,0.2135,3280.2,3279.9,0.4381]
[1736700154859,0.21349,3280.3,3280.0,3.71551]
[1736700155259,0.4572,3280.4,3280.0,3.502]
[1736700155461,0.4572,3280.4,3280.1,0.2135]
[1736700155763,0.21347,3280.6,3280.3,0.21349]
[1736700156060,0.4572,3280.6,3280.4,0.4775]
[1736700156253,0.4572,3280.6,3280.4,3.5247]
[1736700156651,0.67067,3280.6,3280.4,3.5247]
[1736700156854,0.4572,3280.6,3280.4,3.73818]
[1736700157253,0.4572,3280.6,3280.5,0.21347]
[1736700158155,0.4564,3281.0,3280.5,0.21347]
[1736700158361,0.21346,3280.7,3280.5,0.21347]
[1736700158858,0.21346,3280.7,3280.4,3.5247]
[1736700159059,0.21346,3280.7,3280.5,0.21347]
[1736700159662,0.21347,3280.6,3280.4,3.73818]
[1736700159863,0.21347,3280.5,3280.2,3.2078]
[1736700160061,0.2135,3280.1,3280.0,2.81325434]
[1736700160363,0.21351,3280.0,3279.9,6.4392]
[1736700161454,0.21351,3280.0,3279.8,3.87542]
[1736700161662,0.2135,3280.1,3279.8,3.87542]
[1736700162066,3.2078,3280.4,3280.0,2.35915434]
[1736700162262,0.21349,3280.3,3280.0,2.57265434]
[1736700162463,3.42128,3280.4,3280.1,0.21349]
[1736700162861,3.42128,3280.4,3280.2,0.473]
[1736700163168,3.2078,3280.4,3280.3,0.21349]
[1736700163358,3.2078,3280.4,3280.3,3.26069]
[1736700164364,3.2078,3280.4,3280.3,3.0472]
[1736700164365,3.42128,3280.4,3280.3,3.0472]
[1736700164564,3.2078,3280.4,3280.3,3.26069]
[1736700164762,0.21348,3280.5,3280.3,3.26069]
[1736700165156,0.21347,3280.6,3280.3,3.26192515]
[1736700165759,0.21347,3280.6,3280.3,3.04843515]
[1736700165964,0.21347,3280.6,3280.4,3.26068]
[1736700166161,0.21347,3280.5,3280.4,3.0472]
[1736700166359,0.21347,3280.5,3280.4,40.8]
[1736700167461,0.4391,3280.7,3280.3,0.00123515]
[1736700167659,0.21348,3280.4,3280.3,0.00123515]
[1736700169755,3.2078,3280.6,3280.3,0.00123515]
[1736700169960,0.21348,3280.5,3280.3,0.45823515]
[1736700170266,0.21348,3280.4,3280.3,0.45823515]
[1736700170667,0.21348,3280.4,3280.3,0.00123515]
[1736700176167,0.21348,3280.4,3280.3,3.04843515]
[1736700176674,0.21348,3280.5,3280.3,3.71332515]
[1736700177066,0.21348,3280.5,3280.3,3.49983515]
[1736700177572,3.2078,3280.6,3280.3,3.71332515]
[1736700177973,0.21347,3280.5,3280.3,3.71332515]
[1736700178178,0.21348,3280.4,3280.3,3.49983515]
[1736700178368,3.2078,3280.6,3280.3,3.49983515]
[1736700178567,0.21348,3280.5,3280.3,3.49983515]
[1736700178971,3.2078,3280.6,3280.3,3.49983515]
[1736700179271,0.21345,3280.8,3280.6,0.21347]
[1736700179472,0.4572,3280.9,3280.7,0.68736]
[1736700179473,0.67065,3280.9,3280.7,0.68736]
[1736700179675,0.21345,3280.8,3280.7,0.4739]
[1736700180073,0.21345,3280.8,3280.7,3.5211]
[1736700180871,0.21345,3280.8,3280.7,3.0472]
[1736700181071,0.4572,3280.9,3280.7,3.5236]
[1736700181376,0.4572,3280.9,3280.8,0.21345]
[1736700181571,0.4667,3281.2,3281.0,0.21344]
[1736700181874,0.68013,3281.2,3281.0,0.21344]
[1736700182070,0.68013,3281.2,3281.1,3.0472]
[1736700182574,0.68013,3281.2,3281.0,0.21344]
[1736700183679,0.68013,3281.2,3280.8,7.83258711]
[1736700183875,0.68013,3281.2,3280.9,0.21344]
[1736700184075,0.4667,3281.2,3280.8,8.04603711]
[1736700184273,0.21345,3280.9,3280.8,3.0472]
[1736700184978,0.21345,3280.8,3280.7,4.78538711]
[1736700185179,0.65245,3280.8,3280.7,4.78538711]
[1736700185370,0.21346,3280.7,3280.6,3.2078]
[1736700185678,0.21346,3280.7,3280.6,3.42127]
[1736700185878,0.439,3280.8,3280.4,0.4416]
[1736700186182,0.21348,3280.4,3280.3,0.00123515]
[1736700196095,0.68708,3280.4,3280.3,0.00123515]
[1736700198203,3.89488,3280.4,3280.3,0.00123515]
[1736700198897,0.68708,3280.4,3280.3,0.00123515]
[1736700199198,3.89488,3280.4,3280.3,0.00123515]
[1736700208696,3.2078,3280.4,3280.3,3.26192515]
[1736700208897,0.4474,3280.7,3280.3,3.04843515]
[1736700209296,0.65246,3280.8,3280.5,0.21347]
[1736700209501,0.439,3280.8,3280.7,0.21346]
[1736700209802,8.34260569,3281.1,3280.6,2.81095434]
[1736700210007,8.34260569,3281.1,3281.0,0.21344]
[1736700210396,0.68602,3281.4,3281.0,0.21344]
[1736700210596,0.68602,3281.4,3280.8,0.21345]
[1736700210802,0.4726,3281.4,3281.2,0.21342]
[1736700211010,0.4726,3281.4,3281.3,0.4816]
[1736700211505,0.68601,3281.4,3281.3,0.4816]
[1736700211699,0.68601,3281.4,3281.3,3.5288]
[1736700214106,0.21341,3281.4,3281.3,3.5288]
[1736700214307,3.2078,3281.5,3281.3,3.5288]
[1736700214508,3.42121,3281.5,3281.3,3.5288]
[1736700215006,3.2078,3281.5,3281.3,3.5288]
[1736700215807,3.2078,3281.5,3281.4,0.21341]
[1736700217311,3.2078,3281.5,3281.4,41.01341]
[1736700217606,3.2078,3281.5,3281.4,41.48151]
[1736700218108,3.6746,3281.9,3281.7,0.21339]
[1736700218506,3.6746,3281.9,3281.8,0.21339]
[1736700218703,3.2078,3281.9,3281.8,3.26059]
[1736700219111,0.4602,3282.0,3281.9,0.21338]
[1736700219514,0.4602,3282.0,3281.9,0.66518]
[1736700223013,0.4796,3282.2,3281.9,0.4518]
[1736700223214,0.4796,3282.2,3282.1,0.21337]
[1736700224514,0.4783,3282.3,3282.2,0.21336]
[1736700225013,0.4783,3282.3,3282.2,3.26056]
[1736700231317,0.4727,3282.6,3282.5,0.21334]
[1736700231518,0.9163,3282.6,3282.5,0.21334]
[1736700232115,0.9163,3282.6,3282.5,3.26054]
[1736700242929,3.2078,3282.8,3282.5,3.0472]
[1736700243231,3.2078,3282.8,3282.7,0.21333]
[1736700243423,0.9269,3282.9,3282.6,0.4603]
[1736700243629,0.9269,3282.9,3282.8,0.21332]
[1736700253734,0.9269,3282.9,3282.7,0.21333]
[1736700253934,1.14022,3282.9,3282.6,0.21333]
[1736700254729,1.14022,3282.9,3282.7,0.21333]
[1736700255538,0.9269,3282.9,3282.7,0.21333]
[1736700257443,0.9269,3282.9,3282.5,3.2078]
[1736700257745,0.9269,3282.9,3282.8,0.21332]
[1736700258438,0.9269,3282.9,3282.5,3.2078]
[1736700258631,0.9269,3282.9,3282.8,0.21332]
[1736700261343,2.0417913,3282.9,3282.8,0.21332]
[1736700263737,11.61659253,3282.9,3282.8,0.21332]
[1736700263936,11.61659253,3282.9,3282.2,3.6687]
[1736700264140,1.1148913,3282.7,3282.6,0.21334]
[1736700264736,1.1148913,3282.7,3282.2,3.6687]
[1736700265140,1.1148913,3282.7,3282.6,0.21334]
[1736700266641,1.1148913,3282.7,3282.2,3.2078]
[1736700266845,11.66496436,3282.9,3282.5,0.21334]
[1736700267145,11.27322016,3282.9,3282.5,0.21334]
[1736700267344,10.50170123,3282.9,3282.5,0.21334]
[1736700267552,0.21333,3282.8,3282.5,0.21334]
[1736700267847,10.71502123,3282.9,3282.6,0.21334]
[1736700268047,1.1148913,3282.7,3282.6,0.21334]
[1736700269050,2.3238913,3282.7,3282.6,0.21334]
[1736700270353,5.5316913,3282.7,3282.6,0.21334]
[1736700270852,5.5316913,3282.7,3282.1,41.2428]
[1736700271053,4.4168,3282.7,3282.5,0.21334]
[1736700271648,4.4168,3282.7,3282.4,0.21335]
[1736700271847,1.1148913,3282.5,3282.4,0.21335]
[1736700283568,2.2395313,3282.5,3282.3,0.21336]
[1736700283867,1.5966913,3282.4,3282.3,0.21336]
[1736700284771,0.4818,3282.4,3282.3,0.21336]
[1736700284971,0.4818,3282.4,3282.3,3.26056]